[Event "Late-Titled-Tuesday-Blitz-July-09-2024"]
[Site "Chess.com"]
[Date "2024.07.09"]
[Round "6"]
[White "Nicolik"]
[Black "MatthewG-p4p"]
[Result "1-0"]
[WhiteElo "2736"]
[BlackElo "2917"]
[TimeControl "180+1"]
[EndTime "15:07:45 PDT"]
[Termination "Nicolik won by checkmate"]

1. d4 {[%clk 0:03:00.9]} 1... Nf6 {[%clk 0:02:50.2]} 2. c4 {[%clk 0:03:01.1]}
2... c5 {[%clk 0:02:49.5]} 3. d5 {[%clk 0:03:00.9]} 3... e6 {[%clk 0:02:50.2]}
4. Nc3 {[%clk 0:03:00.7]} 4... exd5 {[%clk 0:02:51]} 5. cxd5 {[%clk 0:03:01.6]}
5... d6 {[%clk 0:02:51.9]} 6. e4 {[%clk 0:03:01.7]} 6... g6 {[%clk 0:02:52.8]}
7. h3 {[%clk 0:03:02]} 7... Bg7 {[%clk 0:02:53.4]} 8. Nf3 {[%clk 0:03:02]} 8...
O-O {[%clk 0:02:54.1]} 9. Bd3 {[%clk 0:03:02.3]} 9... Re8 {[%clk 0:02:54.9]} 10.
O-O {[%clk 0:03:02.1]} 10... Nbd7 {[%clk 0:02:55.8]} 11. Bf4 {[%clk 0:02:57.8]}
11... c4 {[%clk 0:02:55.7]} 12. Bc2 {[%clk 0:02:54.9]} 12... Nc5 {[%clk
0:02:53.9]} 13. Nd2 {[%clk 0:02:48]} 13... b6 {[%clk 0:02:50.9]} 14. Nxc4 {[%clk
0:02:34.1]} 14... Nfxe4 {[%clk 0:02:49.6]} 15. Nxe4 {[%clk 0:02:33]} 15... Nxe4
{[%clk 0:02:50]} 16. Re1 {[%clk 0:02:33.3]} 16... Ba6 {[%clk 0:02:46.9]} 17.
Bxe4 {[%clk 0:01:48.8]} 17... Bxc4 {[%clk 0:02:44.9]} 18. Rc1 {[%clk 0:01:37.3]}
18... Ba6 {[%clk 0:02:19]} 19. Qd2 {[%clk 0:01:33.2]} 19... Bb7 {[%clk
0:02:08.5]} 20. Bf3 {[%clk 0:01:26.9]} 20... Qd7 {[%clk 0:02:06.1]} 21. Qb4
{[%clk 0:01:20.3]} 21... Rxe1+ {[%clk 0:02:00.2]} 22. Rxe1 {[%clk 0:01:21.2]}
22... Rd8 {[%clk 0:01:58.6]} 23. Qa3 {[%clk 0:01:05.8]} 23... a5 {[%clk
0:01:54.4]} 24. Qe3 {[%clk 0:01:00]} 24... b5 {[%clk 0:01:09.9]} 25. b3 {[%clk
0:00:55.9]} 25... Bf6 {[%clk 0:01:02.1]} 26. Qb6 {[%clk 0:00:55]} 26... a4
{[%clk 0:00:59.3]} 27. Rc1 {[%clk 0:00:44.9]} 27... Qf5 {[%clk 0:00:32.8]} 28.
Bg3 {[%clk 0:00:38.4]} 28... axb3 {[%clk 0:00:33]} 29. axb3 {[%clk 0:00:39]}
29... Bxd5 {[%clk 0:00:28.7]} 30. Bg4 {[%clk 0:00:33.2]} 30... Qd3 {[%clk
0:00:20.3]} 31. Bxd6 {[%clk 0:00:23.5]} 31... Qxb3 {[%clk 0:00:06]} 32. Bc7
{[%clk 0:00:23.7]} 32... Bg5 {[%clk 0:00:02.7]} 33. Rd1 {[%clk 0:00:18.4]} 33...
Re8 {[%clk 0:00:02.2]} 34. Qc5 {[%clk 0:00:14.4]} 34... Be6 {[%clk 0:00:02.2]}
35. Bf3 {[%clk 0:00:12.7]} 35... Be7 {[%clk 0:00:01.7]} 36. Qc6 {[%clk
0:00:12.5]} 36... Rf8 {[%clk 0:00:02.6]} 37. Be5 {[%clk 0:00:12.2]} 37... Qc4
{[%clk 0:00:03.1]} 38. Qb7 {[%clk 0:00:12]} 38... Bb4 {[%clk 0:00:03]} 39. Ba1
{[%clk 0:00:12.1]} 39... Bc3 {[%clk 0:00:03.2]} 40. Bxc3 {[%clk 0:00:09.7]}
40... Qxc3 {[%clk 0:00:04.1]} 41. Qxb5 {[%clk 0:00:10.2]} 41... Qc2 {[%clk
0:00:04.4]} 42. Qg5 {[%clk 0:00:10.2]} 42... Qc7 {[%clk 0:00:04.8]} 43. h4
{[%clk 0:00:10.5]} 43... Kg7 {[%clk 0:00:04.7]} 44. h5 {[%clk 0:00:10.6]} 44...
h6 {[%clk 0:00:05.4]} 45. Qg3 {[%clk 0:00:11]} 45... Qxg3 {[%clk 0:00:05.7]} 46.
fxg3 {[%clk 0:00:11.7]} 46... g5 {[%clk 0:00:06.6]} 47. Re1 {[%clk 0:00:12]}
47... Rd8 {[%clk 0:00:06.8]} 48. Rc1 {[%clk 0:00:12.1]} 48... Rd2 {[%clk
0:00:06.7]} 49. Rb1 {[%clk 0:00:10]} 49... Kf6 {[%clk 0:00:06.7]} 50. Rb4 {[%clk
0:00:09.5]} 50... Ra2 {[%clk 0:00:04.5]} 51. g4 {[%clk 0:00:10.1]} 51... Rd2
{[%clk 0:00:04.5]} 52. Kh2 {[%clk 0:00:10.7]} 52... Ke5 {[%clk 0:00:05.1]} 53.
Kg3 {[%clk 0:00:11.1]} 53... Rd6 {[%clk 0:00:05.3]} 54. Rb5+ {[%clk 0:00:11.2]}
54... Kf6 {[%clk 0:00:05.8]} 55. Rb4 {[%clk 0:00:11.7]} 55... Kg7 {[%clk
0:00:06.4]} 56. Ra4 {[%clk 0:00:11.7]} 56... Rb6 {[%clk 0:00:06.8]} 57. Rd4
{[%clk 0:00:11.7]} 57... Rb3 {[%clk 0:00:07]} 58. Ra4 {[%clk 0:00:11.5]} 58...
Rc3 {[%clk 0:00:07.3]} 59. Rd4 {[%clk 0:00:11.8]} 59... Kf6 {[%clk 0:00:07.5]}
60. Rb4 {[%clk 0:00:11.9]} 60... Ke5 {[%clk 0:00:08]} 61. Rb8 {[%clk 0:00:11.4]}
61... Bc8 {[%clk 0:00:08.1]} 62. Rb6 {[%clk 0:00:11.3]} 62... Be6 {[%clk
0:00:06.1]} 63. Rb8 {[%clk 0:00:11.6]} 63... Kf6 {[%clk 0:00:06.6]} 64. Rb6
{[%clk 0:00:11.6]} 64... Kg7 {[%clk 0:00:06.8]} 65. Rb4 {[%clk 0:00:11.9]} 65...
Rc5 {[%clk 0:00:07.3]} 66. Rd4 {[%clk 0:00:12.1]} 66... Ra5 {[%clk 0:00:07.7]}
67. Rb4 {[%clk 0:00:12.4]} 67... Ra7 {[%clk 0:00:07.5]} 68. Rd4 {[%clk
0:00:12.8]} 68... Rc7 {[%clk 0:00:08.2]} 69. Rb4 {[%clk 0:00:13.1]} 69... Rc3
{[%clk 0:00:08.9]} 70. Rd4 {[%clk 0:00:13.4]} 70... Bb3 {[%clk 0:00:08.7]} 71.
Rb4 {[%clk 0:00:13.4]} 71... Bc2 {[%clk 0:00:09]} 72. Rd4 {[%clk 0:00:13.6]}
72... Bb3 {[%clk 0:00:08.7]} 73. Rb4 {[%clk 0:00:13.9]} 73... Kg8 {[%clk
0:00:08.2]} 74. Rd4 {[%clk 0:00:14.1]} 74... Be6 {[%clk 0:00:08.9]} 75. Rb4
{[%clk 0:00:14.1]} 75... Kf8 {[%clk 0:00:09.4]} 76. Rb8+ {[%clk 0:00:13.8]}
76... Kg7 {[%clk 0:00:09.8]} 77. Rb4 {[%clk 0:00:14.5]} 77... f5 {[%clk
0:00:10.4]} 78. gxf5 {[%clk 0:00:13.1]} 78... Bxf5 {[%clk 0:00:11.3]} 79. Kf2
{[%clk 0:00:12.2]} 79... Rc2+ {[%clk 0:00:10.6]} 80. Ke3 {[%clk 0:00:11.6]}
80... Ra2 {[%clk 0:00:11.1]} 81. g4 {[%clk 0:00:11.5]} 81... Ra3+ {[%clk
0:00:10.8]} 82. Kf2 {[%clk 0:00:11.3]} 82... Be6 {[%clk 0:00:11.5]} 83. Rb6
{[%clk 0:00:10.6]} 83... Kf7 {[%clk 0:00:10.9]} 84. Rb7+ {[%clk 0:00:09.2]}
84... Kf6 {[%clk 0:00:11.5]} 85. Rh7 {[%clk 0:00:09.5]} 85... Ke5 {[%clk
0:00:09.2]} 86. Rxh6 {[%clk 0:00:10.1]} 86... Ra2+ {[%clk 0:00:05.5]} 87. Kg3
{[%clk 0:00:10.1]} 87... Ra3 {[%clk 0:00:06.4]} 88. Rg6 {[%clk 0:00:10.2]} 88...
Ra1 {[%clk 0:00:04.6]} 89. Rxg5+ {[%clk 0:00:10.6]} 89... Kf6 {[%clk 0:00:05.5]}
90. Rc5 {[%clk 0:00:10.6]} 90... Rg1+ {[%clk 0:00:05.3]} 91. Kf4 {[%clk
0:00:10.8]} 91... Ra1 {[%clk 0:00:06.2]} 92. g5+ {[%clk 0:00:11.3]} 92... Ke7
{[%clk 0:00:07]} 93. h6 {[%clk 0:00:11.5]} 93... Ra4+ {[%clk 0:00:06.7]} 94. Be4
{[%clk 0:00:11.7]} 94... Kd6 {[%clk 0:00:07.6]} 95. Re5 {[%clk 0:00:10.1]} 95...
Bg8 {[%clk 0:00:06.6]} 96. g6 {[%clk 0:00:08.7]} 96... Ra1 {[%clk 0:00:06]} 97.
Rb5 {[%clk 0:00:07.5]} 97... Rf1+ {[%clk 0:00:06.4]} 98. Bf3 {[%clk 0:00:07.5]}
98... Rg1 {[%clk 0:00:04.2]} 99. Rg5 {[%clk 0:00:06]} 99... Rh1 {[%clk
0:00:03.8]} 100. Rh5 {[%clk 0:00:06.5]} 100... Rg1 {[%clk 0:00:03.4]} 101. h7
{[%clk 0:00:06.3]} 101... Rxg6 {[%clk 0:00:04.1]} 102. h8=Q {[%clk 0:00:06.7]}
102... Be6 {[%clk 0:00:04.1]} 103. Qe5+ {[%clk 0:00:06.6]} 103... Kd7 {[%clk
0:00:03.5]} 104. Rh7+ {[%clk 0:00:07.1]} 104... Bf7 {[%clk 0:00:03.6]} 105.
Rxf7+ {[%clk 0:00:07]} 105... Kd8 {[%clk 0:00:04.5]} 106. Qb8# {[%clk 0:00:07]}
1-0

[Event "Late-Titled-Tuesday-Blitz-July-09-2024"]
[Site "Chess.com"]
[Date "2024.07.09"]
[Round "6"]
[White "andrejljepic"]
[Black "IlanSchnaider"]
[Result "1/2-1/2"]
[WhiteElo "2496"]
[BlackElo "2846"]
[TimeControl "180+1"]
[EndTime "15:08:54 PDT"]
[Termination "Game drawn by 50-move rule"]

1. e3 {[%clk 0:03:00.9]} 1... Nf6 {[%clk 0:02:53.2]} 2. Nf3 {[%clk 0:03:01.8]}
2... d5 {[%clk 0:02:53.1]} 3. b3 {[%clk 0:03:01.7]} 3... e6 {[%clk 0:02:53.1]}
4. Bb2 {[%clk 0:03:02.2]} 4... Be7 {[%clk 0:02:53.8]} 5. c4 {[%clk 0:03:00.2]}
5... O-O {[%clk 0:02:54]} 6. d3 {[%clk 0:03:00]} 6... b6 {[%clk 0:02:53.4]} 7.
Nbd2 {[%clk 0:02:59.1]} 7... Bb7 {[%clk 0:02:53.8]} 8. Be2 {[%clk 0:02:59.1]}
8... Nbd7 {[%clk 0:02:53.3]} 9. Qc2 {[%clk 0:02:59.4]} 9... Re8 {[%clk 0:02:52]}
10. O-O {[%clk 0:02:59]} 10... c5 {[%clk 0:02:49.4]} 11. Rac1 {[%clk 0:02:55.9]}
11... Bd6 {[%clk 0:02:46.8]} 12. Rfd1 {[%clk 0:02:54.1]} 12... a5 {[%clk
0:02:41.3]} 13. a4 {[%clk 0:02:51.5]} 13... e5 {[%clk 0:02:38.6]} 14. cxd5
{[%clk 0:02:44.1]} 14... Nxd5 {[%clk 0:02:39.5]} 15. Nc4 {[%clk 0:02:42.8]}
15... Bc7 {[%clk 0:02:35.3]} 16. Qb1 {[%clk 0:02:42]} 16... Qe7 {[%clk
0:02:30.2]} 17. Ne1 {[%clk 0:02:39.3]} 17... Nb4 {[%clk 0:02:22.2]} 18. Bf3
{[%clk 0:02:33.5]} 18... Rab8 {[%clk 0:02:17.3]} 19. Bxb7 {[%clk 0:02:32.1]}
19... Rxb7 {[%clk 0:02:18.2]} 20. e4 {[%clk 0:02:30.4]} 20... Nf8 {[%clk
0:02:09]} 21. Nc2 {[%clk 0:02:30.3]} 21... Nxc2 {[%clk 0:01:50.2]} 22. Qxc2
{[%clk 0:02:29.8]} 22... Ng6 {[%clk 0:01:50]} 23. g3 {[%clk 0:02:26.6]} 23...
Qg5 {[%clk 0:01:39]} 24. Qd2 {[%clk 0:02:20.8]} 24... Qh5 {[%clk 0:01:29.3]} 25.
Ne3 {[%clk 0:02:15.8]} 25... Bd8 {[%clk 0:01:28.8]} 26. Re1 {[%clk 0:02:02.6]}
26... Rd7 {[%clk 0:01:23.8]} 27. Rcd1 {[%clk 0:01:52.4]} 27... Bg5 {[%clk
0:01:20.5]} 28. Qe2 {[%clk 0:01:52.4]} 28... Qxe2 {[%clk 0:01:17.1]} 29. Rxe2
{[%clk 0:01:53.3]} 29... Bxe3 {[%clk 0:01:17.6]} 30. fxe3 {[%clk 0:01:53]} 30...
Red8 {[%clk 0:01:17]} 31. Red2 {[%clk 0:01:53.3]} 31... f6 {[%clk 0:01:17.4]}
32. Kf2 {[%clk 0:01:53.3]} 32... Ne7 {[%clk 0:01:17.5]} 33. Ke2 {[%clk
0:01:50.6]} 33... Nc6 {[%clk 0:01:17.4]} 34. Bc3 {[%clk 0:01:51.3]} 34... Kf7
{[%clk 0:01:16.7]} 35. Rf1 {[%clk 0:01:48.9]} 35... Ke6 {[%clk 0:01:16.3]} 36.
Rdd1 {[%clk 0:01:45]} 36... Rb7 {[%clk 0:01:11.7]} 37. Kd2 {[%clk 0:01:39.6]}
37... b5 {[%clk 0:00:59.5]} 38. axb5 {[%clk 0:01:36.3]} 38... Rxb5 {[%clk
0:01:00.4]} 39. Kc2 {[%clk 0:01:35.8]} 39... Rdb8 {[%clk 0:01:01]} 40. Rb1
{[%clk 0:01:33.9]} 40... h5 {[%clk 0:00:58.8]} 41. Rb2 {[%clk 0:01:33.6]} 41...
h4 {[%clk 0:00:34.2]} 42. g4 {[%clk 0:01:32.4]} 42... h3 {[%clk 0:00:31.1]} 43.
Rf3 {[%clk 0:01:28.3]} 43... Rh8 {[%clk 0:00:31]} 44. Rb1 {[%clk 0:01:25.5]}
44... Nb4+ {[%clk 0:00:26.3]} 45. Kd2 {[%clk 0:01:24.3]} 45... Rd8 {[%clk
0:00:25.6]} 46. Bxb4 {[%clk 0:01:23.5]} 46... Rxb4 {[%clk 0:00:25.2]} 47. Rff1
{[%clk 0:01:02.7]} 47... Rxe4 {[%clk 0:00:24.7]} 48. g5 {[%clk 0:00:59.1]} 48...
f5 {[%clk 0:00:21.6]} 49. Ra1 {[%clk 0:00:58.8]} 49... Rb4 {[%clk 0:00:20.7]}
50. Rxa5 {[%clk 0:00:58.4]} 50... Rxb3 {[%clk 0:00:21.2]} 51. Ra6+ {[%clk
0:00:58.7]} 51... Ke7 {[%clk 0:00:21.5]} 52. Rxf5 {[%clk 0:00:58.4]} 52...
Rdxd3+ {[%clk 0:00:21.3]} 53. Kc2 {[%clk 0:00:56.9]} 53... Rdc3+ {[%clk
0:00:20.3]} 54. Kd2 {[%clk 0:00:56.9]} 54... Rd3+ {[%clk 0:00:21.2]} 55. Kc2
{[%clk 0:00:57.4]} 55... Rxe3 {[%clk 0:00:21.9]} 56. g6 {[%clk 0:00:56]} 56...
Rbc3+ {[%clk 0:00:20.6]} 57. Kb2 {[%clk 0:00:55.6]} 57... Rb3+ {[%clk 0:00:17]}
58. Kc2 {[%clk 0:00:53.7]} 58... Rec3+ {[%clk 0:00:07]} 59. Kd2 {[%clk
0:00:53.3]} 59... Rd3+ {[%clk 0:00:07.9]} 60. Kc2 {[%clk 0:00:53.8]} 60... Rdc3+
{[%clk 0:00:08]} 61. Kd2 {[%clk 0:00:54.2]} 61... Rd3+ {[%clk 0:00:08.9]} 62.
Ke2 {[%clk 0:00:38.8]} 62... c4 {[%clk 0:00:04.9]} 63. Rf7+ {[%clk 0:00:38.5]}
63... Ke8 {[%clk 0:00:05.3]} 64. Ra8+ {[%clk 0:00:32.5]} 64... Rd8 {[%clk
0:00:05.5]} 65. Ra5 {[%clk 0:00:31.5]} 65... Rb2+ {[%clk 0:00:03.1]} 66. Kf3
{[%clk 0:00:26.8]} 66... Rd3+ {[%clk 0:00:03.2]} 67. Kg4 {[%clk 0:00:26.1]}
67... Rg2+ {[%clk 0:00:02.8]} 68. Kh5 {[%clk 0:00:25.1]} 68... c3 {[%clk
0:00:02.7]} 69. Rxg7 {[%clk 0:00:23]} 69... Kf8 {[%clk 0:00:01.5]} 70. Rf7+
{[%clk 0:00:21.9]} 70... Ke8 {[%clk 0:00:02.1]} 71. Rxe5+ {[%clk 0:00:18.6]}
71... Kd8 {[%clk 0:00:02.2]} 72. Ra5 {[%clk 0:00:16.2]} 72... Ke8 {[%clk
0:00:01.8]} 73. Ra8+ {[%clk 0:00:12.7]} 73... Rd8 {[%clk 0:00:01.8]} 74. Raa7
{[%clk 0:00:09.1]} 74... Rd5+ {[%clk 0:00:02]} 75. Kh6 {[%clk 0:00:07.9]} 75...
c2 {[%clk 0:00:02.9]} 76. Rac7 {[%clk 0:00:06.9]} 76... Rxh2 {[%clk 0:00:02.2]}
77. Rc8+ {[%clk 0:00:05.8]} 77... Rd8 {[%clk 0:00:02.1]} 78. Rxc2 {[%clk
0:00:06.4]} 78... Rxc2 {[%clk 0:00:01.5]} 79. Rf4 {[%clk 0:00:05.4]} 79... Rg2
{[%clk 0:00:02]} 80. g7 {[%clk 0:00:05.3]} 80... Rd6+ {[%clk 0:00:01.8]} 81. Kh7
{[%clk 0:00:04.4]} 81... Rxg7+ {[%clk 0:00:01.1]} 82. Kxg7 {[%clk 0:00:04.4]}
82... Rd3 {[%clk 0:00:01]} 83. Rh4 {[%clk 0:00:04.4]} 83... Rg3+ {[%clk
0:00:01.3]} 84. Kf6 {[%clk 0:00:04.2]} 84... Kd7 {[%clk 0:00:01.6]} 85. Kf5
{[%clk 0:00:04.6]} 85... Kd6 {[%clk 0:00:02]} 86. Kf4 {[%clk 0:00:05.2]} 86...
Ra3 {[%clk 0:00:02.3]} 87. Kg4 {[%clk 0:00:05.7]} 87... Ke5 {[%clk 0:00:01.8]}
88. Rxh3 {[%clk 0:00:05.7]} 88... Ra4+ {[%clk 0:00:02.3]} 89. Kg5 {[%clk
0:00:06.2]} 89... Ra1 {[%clk 0:00:02.2]} 90. Re3+ {[%clk 0:00:06.4]} 90... Kd4
{[%clk 0:00:02.8]} 91. Re8 {[%clk 0:00:06.9]} 91... Ra7 {[%clk 0:00:03.1]} 92.
Kf6 {[%clk 0:00:07.3]} 92... Rh7 {[%clk 0:00:03.3]} 93. Rd8+ {[%clk 0:00:07.3]}
93... Ke4 {[%clk 0:00:03.6]} 94. Ke6 {[%clk 0:00:07.4]} 94... Rh6+ {[%clk
0:00:03.7]} 95. Kd7 {[%clk 0:00:08]} 95... Kd5 {[%clk 0:00:04]} 96. Kc7+ {[%clk
0:00:05.7]} 96... Kc5 {[%clk 0:00:04.5]} 97. Rd7 {[%clk 0:00:06.2]} 97... Ra6
{[%clk 0:00:04.7]} 98. Kd8 {[%clk 0:00:05.9]} 98... Kc6 {[%clk 0:00:04.1]} 99.
Ke7 {[%clk 0:00:05.3]} 99... Ra1 {[%clk 0:00:03.6]} 100. Rd6+ {[%clk 0:00:05.3]}
100... Kc5 {[%clk 0:00:04.2]} 101. Re6 {[%clk 0:00:04.9]} 101... Kd5 {[%clk
0:00:03.6]} 102. Rd6+ {[%clk 0:00:05.4]} 102... Kc5 {[%clk 0:00:03.9]} 103. Re6
{[%clk 0:00:05.9]} 103... Rf1 {[%clk 0:00:04.3]} 104. Rf6 {[%clk 0:00:05.9]}
104... Rh1 {[%clk 0:00:04]} 105. Re6 {[%clk 0:00:06.3]} 105... Rh5 {[%clk
0:00:02.6]} 106. Kf6 {[%clk 0:00:06.3]} 106... Kd5 {[%clk 0:00:02.1]} 107. Re8
{[%clk 0:00:06.4]} 107... Rh6+ {[%clk 0:00:02.3]} 108. Kg5 {[%clk 0:00:06.4]}
108... Ra6 {[%clk 0:00:02.2]} 109. Re1 {[%clk 0:00:06.5]} 109... Ra2 {[%clk
0:00:02]} 110. Rd1+ {[%clk 0:00:06.9]} 110... Ke6 {[%clk 0:00:01.9]} 111. Re1+
{[%clk 0:00:07.5]} 111... Kf7 {[%clk 0:00:02.6]} 112. Kf4 {[%clk 0:00:08.1]}
112... Kf6 {[%clk 0:00:02.7]} 113. Kf3 {[%clk 0:00:08.3]} 113... Kf5 {[%clk
0:00:02.5]} 114. Re3 {[%clk 0:00:08.9]} 114... Rh2 {[%clk 0:00:02.6]} 115. Kg3
{[%clk 0:00:08.9]} 115... Rh8 {[%clk 0:00:03.2]} 116. Rf3+ {[%clk 0:00:09.2]}
116... Kg5 {[%clk 0:00:03.8]} 117. Rb3 {[%clk 0:00:09.6]} 117... Rc8 {[%clk
0:00:03]} 118. Rb5+ {[%clk 0:00:09.6]} 118... Kf6 {[%clk 0:00:03.7]} 119. Rb3
{[%clk 0:00:08.1]} 119... Kf5 {[%clk 0:00:03.2]} 120. Rf3+ {[%clk 0:00:08.3]}
120... Ke5 {[%clk 0:00:03.4]} 121. Re3+ {[%clk 0:00:08.4]} 121... Kd4 {[%clk
0:00:03.5]} 122. Ra3 {[%clk 0:00:07.9]} 122... Rg8+ {[%clk 0:00:02.9]} 123. Kf2
{[%clk 0:00:08.3]} 123... Rh8 {[%clk 0:00:02.7]} 124. Rf3 {[%clk 0:00:08.3]}
124... Ke4 {[%clk 0:00:02.3]} 125. Re3+ {[%clk 0:00:08.7]} 125... Kd4 {[%clk
0:00:02.9]} 126. Rf3 {[%clk 0:00:09]} 126... Rh2+ {[%clk 0:00:03.4]} 127. Kg3
{[%clk 0:00:09.4]} 127... Rh1 {[%clk 0:00:03.9]} 128. Kf4 {[%clk 0:00:09.6]}
128... Rh4+ {[%clk 0:00:03.7]} 129. Kg3 {[%clk 0:00:09.9]} 129... Rh8 {[%clk
0:00:04.6]} 130. Rf4+ {[%clk 0:00:10.5]} 130... Ke3 {[%clk 0:00:04.7]} 131. Rf3+
{[%clk 0:00:11]} 131... Ke4 {[%clk 0:00:05.3]} 132. Rf4+ {[%clk 0:00:11.5]}
132... Ke5 {[%clk 0:00:06]} 133. Rf3 {[%clk 0:00:11.8]} 133... Rg8+ {[%clk
0:00:06.2]} 134. Kf2 {[%clk 0:00:12.2]} 134... Kd4 {[%clk 0:00:06.9]} 135. Rf4+
{[%clk 0:00:12.3]} 135... Kd3 {[%clk 0:00:07.1]} 136. Rf3+ {[%clk 0:00:12.8]}
136... Kd2 {[%clk 0:00:07.7]} 137. Rf7 {[%clk 0:00:12.9]} 137... Rd8 {[%clk
0:00:08.4]} 138. Rf6 {[%clk 0:00:12.7]} 1/2-1/2

[Event "Late-Titled-Tuesday-Blitz-July-09-2024"]
[Site "Chess.com"]
[Date "2024.07.09"]
[Round "7"]
[White "TokChess"]
[Black "ChessicallyInclined"]
[Result "0-1"]
[WhiteElo "2582"]
[BlackElo "2737"]
[TimeControl "180+1"]
[EndTime "15:13:43 PDT"]
[Termination "ChessicallyInclined won by resignation"]

1. d4 {[%clk 0:03:00.9]} 1... Nf6 {[%clk 0:03:00.1]} 2. c3 {[%clk 0:02:59.6]}
2... b6 {[%clk 0:03:00]} 3. Nf3 {[%clk 0:03:00.4]} 3... Bb7 {[%clk 0:03:00.5]}
4. g3 {[%clk 0:03:00.8]} 4... g6 {[%clk 0:03:00.8]} 5. Bg2 {[%clk 0:03:01.2]}
5... Bg7 {[%clk 0:03:01.4]} 6. O-O {[%clk 0:03:01.3]} 6... O-O {[%clk 0:03:02]}
7. a4 {[%clk 0:03:00.7]} 7... d6 {[%clk 0:02:59.3]} 8. a5 {[%clk 0:03:00.3]}
8... b5 {[%clk 0:02:56.4]} 9. Bg5 {[%clk 0:02:55.7]} 9... a6 {[%clk 0:02:56.3]}
10. Nbd2 {[%clk 0:02:54.3]} 10... c5 {[%clk 0:02:55.6]} 11. Bxf6 {[%clk
0:02:41.4]} 11... Bxf6 {[%clk 0:02:54.7]} 12. b4 {[%clk 0:02:41.1]} 12... cxb4
{[%clk 0:02:50]} 13. cxb4 {[%clk 0:02:41]} 13... Nc6 {[%clk 0:02:50.3]} 14. Ne4
{[%clk 0:02:22.9]} 14... Nxb4 {[%clk 0:02:48.3]} 15. Nxf6+ {[%clk 0:02:22.9]}
15... exf6 {[%clk 0:02:49.2]} 16. Qd2 {[%clk 0:02:16.9]} 16... Nc6 {[%clk
0:02:42.6]} 17. h4 {[%clk 0:02:17.1]} 17... h5 {[%clk 0:02:29.4]} 18. Qh6 {[%clk
0:01:58.7]} 18... Nxa5 {[%clk 0:02:17.4]} 19. Rxa5 {[%clk 0:01:26.4]} 19... Qxa5
{[%clk 0:02:14.5]} 20. Ng5 {[%clk 0:01:27.3]} 20... fxg5 {[%clk 0:02:08.9]} 21.
Bxb7 {[%clk 0:01:28.2]} 21... b4 {[%clk 0:01:56]} 22. Be4 {[%clk 0:01:25.2]}
22... Qc7 {[%clk 0:01:37.7]} 23. Qxg5 {[%clk 0:01:13.9]} 23... Rae8 {[%clk
0:01:31]} 24. Rc1 {[%clk 0:01:05.2]} 24... Qe7 {[%clk 0:01:26.9]} 0-1

[Event "Late-Titled-Tuesday-Blitz-July-09-2024"]
[Site "Chess.com"]
[Date "2024.07.09"]
[Round "7"]
[White "TC2304"]
[Black "ExchangeAB"]
[Result "0-1"]
[WhiteElo "2350"]
[BlackElo "2464"]
[TimeControl "180+1"]
[EndTime "15:13:51 PDT"]
[Termination "ExchangeAB won by resignation"]

1. d4 {[%clk 0:03:00.9]} 1... Nf6 {[%clk 0:02:59.4]} 2. Nf3 {[%clk 0:03:01.4]}
2... c5 {[%clk 0:02:59.4]} 3. d5 {[%clk 0:03:01]} 3... g6 {[%clk 0:02:59.4]} 4.
Nc3 {[%clk 0:02:58.2]} 4... d6 {[%clk 0:02:57.6]} 5. e4 {[%clk 0:02:58.5]} 5...
Bg7 {[%clk 0:02:57.2]} 6. Bb5+ {[%clk 0:02:59]} 6... Nfd7 {[%clk 0:02:54.7]} 7.
a4 {[%clk 0:02:59.9]} 7... O-O {[%clk 0:02:54.3]} 8. O-O {[%clk 0:02:59.8]} 8...
Ne5 {[%clk 0:02:50.8]} 9. Nxe5 {[%clk 0:02:52.1]} 9... Bxe5 {[%clk 0:02:51.7]}
10. f4 {[%clk 0:02:46.4]} 10... Bd4+ {[%clk 0:02:51.3]} 11. Kh1 {[%clk 0:02:47]}
11... e6 {[%clk 0:02:48.5]} 12. Ne2 {[%clk 0:02:43.7]} 12... Bg7 {[%clk
0:02:45.7]} 13. Ng3 {[%clk 0:02:33.3]} 13... exd5 {[%clk 0:02:44.1]} 14. exd5
{[%clk 0:02:32.7]} 14... Nd7 {[%clk 0:02:25.3]} 15. Ra3 {[%clk 0:02:28.1]} 15...
Nf6 {[%clk 0:02:11.9]} 16. f5 {[%clk 0:02:26.7]} 16... Bd7 {[%clk 0:02:00.9]}
17. fxg6 {[%clk 0:02:20]} 17... fxg6 {[%clk 0:01:59.4]} 18. Bg5 {[%clk
0:02:17.4]} 18... Bxb5 {[%clk 0:01:58.3]} 19. axb5 {[%clk 0:02:18.3]} 19... Qd7
{[%clk 0:01:56.2]} 20. Raf3 {[%clk 0:02:07.6]} 20... Ng4 {[%clk 0:01:29]} 21.
Rxf8+ {[%clk 0:01:54.2]} 21... Rxf8 {[%clk 0:01:29.9]} 22. Rxf8+ {[%clk
0:01:53.7]} 22... Bxf8 {[%clk 0:01:30.8]} 23. Ne4 {[%clk 0:01:41.2]} 23... Qf5
{[%clk 0:01:30.9]} 24. Qf3 {[%clk 0:01:30.5]} 24... Qxe4 {[%clk 0:01:26]} 25.
Qg3 {[%clk 0:01:08.4]} 25... Qf5 {[%clk 0:01:19.9]} 0-1

[Event "Late-Titled-Tuesday-Blitz-July-09-2024"]
[Site "Chess.com"]
[Date "2024.07.09"]
[Round "7"]
[White "Itay121"]
[Black "alreadybroken23"]
[Result "1-0"]
[WhiteElo "2536"]
[BlackElo "2648"]
[TimeControl "180+1"]
[EndTime "15:13:59 PDT"]
[Termination "Itay121 won by resignation"]

1. e4 {[%clk 0:03:00.9]} 1... Nf6 {[%clk 0:02:59.1]} 2. e5 {[%clk 0:02:59.9]}
2... Nd5 {[%clk 0:02:58.9]} 3. Nc3 {[%clk 0:03:00.3]} 3... e6 {[%clk 0:02:58.5]}
4. Nxd5 {[%clk 0:02:57.5]} 4... exd5 {[%clk 0:02:59.4]} 5. d4 {[%clk 0:02:57.7]}
5... d6 {[%clk 0:02:59.4]} 6. Nf3 {[%clk 0:02:52]} 6... Nc6 {[%clk 0:02:57.5]}
7. Bd3 {[%clk 0:02:45]} 7... dxe5 {[%clk 0:02:53.6]} 8. dxe5 {[%clk 0:02:43.2]}
8... Bg4 {[%clk 0:02:52.5]} 9. O-O {[%clk 0:02:34.9]} 9... Be7 {[%clk
0:02:46.5]} 10. Re1 {[%clk 0:02:32.6]} 10... O-O {[%clk 0:02:45.8]} 11. h3
{[%clk 0:02:27.4]} 11... Bh5 {[%clk 0:02:44.6]} 12. Be2 {[%clk 0:02:27.3]} 12...
Re8 {[%clk 0:02:43]} 13. Bf4 {[%clk 0:02:25.5]} 13... Bc5 {[%clk 0:02:29.5]} 14.
c3 {[%clk 0:02:19.7]} 14... Qd7 {[%clk 0:02:24.5]} 15. Nd4 {[%clk 0:02:11]}
15... Bxe2 {[%clk 0:02:16.1]} 16. Rxe2 {[%clk 0:02:11.9]} 16... Bxd4 {[%clk
0:02:15.8]} 17. cxd4 {[%clk 0:02:12.8]} 17... Ne7 {[%clk 0:02:14.4]} 18. Rc1
{[%clk 0:02:04.4]} 18... b6 {[%clk 0:02:12.8]} 19. e6 {[%clk 0:02:00.7]} 19...
fxe6 {[%clk 0:02:08.5]} 20. Rxc7 {[%clk 0:02:00.6]} 20... Qb5 {[%clk 0:02:07.3]}
21. Rxe6 {[%clk 0:01:56.6]} 21... Ng6 {[%clk 0:02:04.9]} 22. Qg4 {[%clk
0:01:25.7]} 22... Rf8 {[%clk 0:01:22.7]} 23. Rxg6 {[%clk 0:01:05.1]} 23... hxg6
{[%clk 0:01:19]} 24. Qxg6 {[%clk 0:01:05.1]} 1-0